[Event "Titled Tuesday Blitz December 06 Early 2022"]
[White "Garv Gaur"]
[Black "Pajeken, Jakob Leon"]
[WhiteFideId "45030839"]
[BlackFideId "12942839"]
[WhiteElo "2056"]
[BlackElo "2414"]
[Result "1/2-1/2"]
[Round "08"]
[TimeControl "180+1"]
[Date "2022.12.07"]
[WhiteClock "0:00:02"]
[BlackClock "0:00:10"]

1. d4 {[%clk 0:03:00]}  d5 {[%clk 0:02:59]} 2. Nf3 {[%clk 0:02:59]}  Nf6 {[%clk 0:02:59]} 3. c4 {[%clk 0:02:56]}  dxc4 {[%clk 0:03:00]} 4. g3 {[%clk 0:02:56]}  b5 {[%clk 0:02:59]} 5. Bg2 {[%clk 0:02:55]}  Bb7 {[%clk 0:03:00]} 6. O-O {[%clk 0:02:54]}  Nbd7 {[%clk 0:02:59]} 7. a4 {[%clk 0:02:51]}  a6 {[%clk 0:02:59]} 8. Bf4 {[%clk 0:02:42]}  e6 {[%clk 0:02:57]} 9. b3 {[%clk 0:02:26]}  cxb3 {[%clk 0:02:46]} 10. Qxb3 {[%clk 0:02:27]}  Bd5 {[%clk 0:02:44]} 11. Qc2 {[%clk 0:02:26]}  c6 {[%clk 0:02:40]} 12. Nbd2 {[%clk 0:02:22]}  Nb6 {[%clk 0:02:34]} 13. a5 {[%clk 0:02:18]}  Nc4 {[%clk 0:02:04]} 14. e4 {[%clk 0:02:16]}  Rc8 {[%clk 0:01:51]} 15. exd5 {[%clk 0:02:13]}  cxd5 {[%clk 0:01:52]} 16. Qd3 {[%clk 0:02:13]}  Bb4 {[%clk 0:01:46]} 17. Ne5 {[%clk 0:02:05]}  O-O {[%clk 0:01:43]} 18. Rfc1 {[%clk 0:02:02]}  Nxa5 {[%clk 0:01:36]} 19. Rxc8 {[%clk 0:01:59]}  Qxc8 {[%clk 0:01:35]} 20. Nb3 {[%clk 0:01:56]}  Nc4 {[%clk 0:01:32]} 21. Bd2 {[%clk 0:01:35]}  Nxd2 {[%clk 0:01:15]} 22. Nxd2 {[%clk 0:01:35]}  Qc3 {[%clk 0:01:15]} 23. Nb3 {[%clk 0:01:30]}  a5 {[%clk 0:01:09]} 24. Qxc3 {[%clk 0:01:25]}  Bxc3 {[%clk 0:01:08]} 25. Rc1 {[%clk 0:01:26]}  Bb4 {[%clk 0:01:05]} 26. Nd3 {[%clk 0:01:23]}  Ne4 {[%clk 0:00:45]} 27. Nxb4 {[%clk 0:01:22]}  axb4 {[%clk 0:00:45]} 28. Bf1 {[%clk 0:01:22]}  Nc3 {[%clk 0:00:45]} 29. Nd2 {[%clk 0:01:17]}  Ra8 {[%clk 0:00:37]} 30. Nb3 {[%clk 0:00:59]}  f6 {[%clk 0:00:31]} 31. Ra1 {[%clk 0:00:56]}  Ra4 {[%clk 0:00:25]} 32. Bd3 {[%clk 0:00:52]}  e5 {[%clk 0:00:23]} 33. Kf1 {[%clk 0:00:46]}  exd4 {[%clk 0:00:19]} 34. Ke1 {[%clk 0:00:46]}  Kf7 {[%clk 0:00:19]} 35. Kd2 {[%clk 0:00:46]}  Ke7 {[%clk 0:00:20]} 36. Kc1 {[%clk 0:00:45]}  Kd6 {[%clk 0:00:16]} 37. Kb2 {[%clk 0:00:45]}  Rxa1 {[%clk 0:00:16]} 38. Kxa1 {[%clk 0:00:43]}  Ke5 {[%clk 0:00:16]} 39. f4+ {[%clk 0:00:43]}  Kd6 {[%clk 0:00:15]} 40. Nxd4 {[%clk 0:00:44]}  h6 {[%clk 0:00:15]} 41. Nxb5+ {[%clk 0:00:43]}  Kc5 {[%clk 0:00:15]} 42. Nxc3 {[%clk 0:00:41]}  bxc3 {[%clk 0:00:15]} 43. Kb1 {[%clk 0:00:42]}  Kd4 {[%clk 0:00:14]} 44. Kc2 {[%clk 0:00:42]}  Ke3 {[%clk 0:00:14]} 45. Kxc3 {[%clk 0:00:42]}  Kf2 {[%clk 0:00:15]} 46. Kd4 {[%clk 0:00:41]}  Kg2 {[%clk 0:00:15]} 47. f5 {[%clk 0:00:39]}  Kxh2 {[%clk 0:00:15]} 48. g4 {[%clk 0:00:36]}  Kg3 {[%clk 0:00:14]} 49. Be2 {[%clk 0:00:33]}  Kf4 {[%clk 0:00:11]} 50. Kxd5 {[%clk 0:00:33]}  h5 {[%clk 0:00:12]} 51. gxh5 {[%clk 0:00:22]}  Kxf5 {[%clk 0:00:11]} 52. Bd3+ {[%clk 0:00:23]}  Kg5 {[%clk 0:00:12]} 53. Bg6 {[%clk 0:00:24]}  f5 {[%clk 0:00:11]} 54. Kd4 {[%clk 0:00:24]}  Kf6 {[%clk 0:00:10]} 55. Ke3 {[%clk 0:00:24]}  Ke7 {[%clk 0:00:10]} 56. Kf4 {[%clk 0:00:24]}  Kf8 {[%clk 0:00:10]} 57. Kxf5 {[%clk 0:00:21]}  Kg8 {[%clk 0:00:10]} 58. Be8 {[%clk 0:00:15]}  Kh8 {[%clk 0:00:11]} 59. Kg6 {[%clk 0:00:15]}  Kg8 {[%clk 0:00:11]} 60. Bc6 {[%clk 0:00:12]}  Kh8 {[%clk 0:00:12]} 61. Kf7 {[%clk 0:00:12]}  Kh7 {[%clk 0:00:11]} 62. Kf8 {[%clk 0:00:13]}  Kh8 {[%clk 0:00:11]} 63. Be4 {[%clk 0:00:12]}  g6 {[%clk 0:00:10]} 64. hxg6 {[%clk 0:00:02]} 1/2-1/2


[Site "https://www.chess.com"]

[Event "Titled Tuesday Blitz December 06 Early 2022"]
[White "Gatterer, Florian"]
[Black "sabkeIXO"]
[WhiteFideId "811688"]
[WhiteElo "2218"]
[BlackElo "2479"]
[Result "0-1"]
[Round "08"]
[TimeControl "180+1"]
[Date "2022.12.07"]
[WhiteClock "0:00:04"]
[BlackClock "0:00:38"]

1. e4 {[%clk 0:03:00]}  d5 {[%clk 0:02:59]} 2. exd5 {[%clk 0:02:57]}  Nf6 {[%clk 0:03:00]} 3. d4 {[%clk 0:02:55]}  Nxd5 {[%clk 0:03:00]} 4. Nf3 {[%clk 0:02:56]}  Bg4 {[%clk 0:02:59]} 5. Be2 {[%clk 0:02:56]}  Nc6 {[%clk 0:02:59]} 6. c4 {[%clk 0:02:56]}  Nb6 {[%clk 0:02:59]} 7. c5 {[%clk 0:02:56]}  Nd5 {[%clk 0:02:43]} 8. O-O {[%clk 0:02:53]}  e6 {[%clk 0:02:42]} 9. Nc3 {[%clk 0:02:53]}  Be7 {[%clk 0:02:41]} 10. h3 {[%clk 0:02:50]}  Bh5 {[%clk 0:02:40]} 11. Ne4 {[%clk 0:02:29]}  O-O {[%clk 0:02:31]} 12. Ng3 {[%clk 0:02:29]}  Bg6 {[%clk 0:02:23]} 13. Bd3 {[%clk 0:02:29]}  Bf6 {[%clk 0:02:22]} 14. Bxg6 {[%clk 0:02:23]}  hxg6 {[%clk 0:02:22]} 15. Ne4 {[%clk 0:02:23]}  Re8 {[%clk 0:02:19]} 16. Nxf6+ {[%clk 0:02:16]}  gxf6 {[%clk 0:02:11]} 17. Qb3 {[%clk 0:02:10]}  Rb8 {[%clk 0:02:09]} 18. Re1 {[%clk 0:02:06]}  Kg7 {[%clk 0:02:01]} 19. Bd2 {[%clk 0:01:57]}  Nde7 {[%clk 0:01:57]} 20. Bc3 {[%clk 0:01:56]}  Qd5 {[%clk 0:01:57]} 21. Qc2 {[%clk 0:01:50]}  Red8 {[%clk 0:01:50]} 22. b3 {[%clk 0:01:49]}  Qf5 {[%clk 0:01:48]} 23. Qe2 {[%clk 0:01:40]}  Nd5 {[%clk 0:01:44]} 24. Bb2 {[%clk 0:01:30]}  Rh8 {[%clk 0:01:33]} 25. Bc1 {[%clk 0:00:50]}  Nf4 {[%clk 0:01:18]} 26. Bxf4 {[%clk 0:00:42]}  Qxf4 {[%clk 0:01:19]} 27. Qe3 {[%clk 0:00:43]}  Qf5 {[%clk 0:01:08]} 28. Qe4 {[%clk 0:00:43]}  Ne7 {[%clk 0:01:07]} 29. Qxf5 {[%clk 0:00:42]}  Nxf5 {[%clk 0:01:07]} 30. Rac1 {[%clk 0:00:39]}  c6 {[%clk 0:01:07]} 31. b4 {[%clk 0:00:38]}  Rhd8 {[%clk 0:01:07]} 32. Rc4 {[%clk 0:00:38]}  Rd5 {[%clk 0:01:06]} 33. a4 {[%clk 0:00:35]}  Rbd8 {[%clk 0:01:06]} 34. Re4 {[%clk 0:00:35]}  a6 {[%clk 0:01:01]} 35. b5 {[%clk 0:00:34]}  axb5 {[%clk 0:01:00]} 36. axb5 {[%clk 0:00:34]}  Ra8 {[%clk 0:01:00]} 37. bxc6 {[%clk 0:00:34]}  bxc6 {[%clk 0:01:01]} 38. Rb4 {[%clk 0:00:34]}  Ne7 {[%clk 0:00:58]} 39. Rb7 {[%clk 0:00:33]}  Nf5 {[%clk 0:00:53]} 40. Rb6 {[%clk 0:00:33]}  Ra4 {[%clk 0:00:53]} 41. Rxc6 {[%clk 0:00:31]}  Nxd4 {[%clk 0:00:54]} 42. Nxd4 {[%clk 0:00:31]}  Rdxd4 {[%clk 0:00:54]} 43. Rxd4 {[%clk 0:00:31]}  Rxd4 {[%clk 0:00:55]} 44. Ra6 {[%clk 0:00:26]}  Rc4 {[%clk 0:00:55]} 45. c6 {[%clk 0:00:27]}  f5 {[%clk 0:00:55]} 46. f3 {[%clk 0:00:27]}  Kf6 {[%clk 0:00:54]} 47. Kh2 {[%clk 0:00:27]}  g5 {[%clk 0:00:54]} 48. Kg3 {[%clk 0:00:26]}  Ke5 {[%clk 0:00:54]} 49. Ra7 {[%clk 0:00:24]}  f6 {[%clk 0:00:53]} 50. c7 {[%clk 0:00:25]}  Kd6 {[%clk 0:00:53]} 51. Ra6+ {[%clk 0:00:20]}  Kd7 {[%clk 0:00:53]} 52. c8=Q+ {[%clk 0:00:11]}  Rxc8 {[%clk 0:00:52]} 53. Ra7+ {[%clk 0:00:11]}  Rc7 {[%clk 0:00:51]} 54. Ra6 {[%clk 0:00:10]}  Ke7 {[%clk 0:00:51]} 55. Rb6 {[%clk 0:00:09]}  Kf7 {[%clk 0:00:51]} 56. Ra6 {[%clk 0:00:10]}  Rc4 {[%clk 0:00:50]} 57. Rb6 {[%clk 0:00:10]}  e5 {[%clk 0:00:50]} 58. Rb7+ {[%clk 0:00:10]}  Kg6 {[%clk 0:00:50]} 59. Re7 {[%clk 0:00:09]}  Rc3 {[%clk 0:00:50]} 60. Kh2 {[%clk 0:00:09]}  f4 {[%clk 0:00:49]} 61. Kg1 {[%clk 0:00:09]}  Kf5 {[%clk 0:00:49]} 62. Kh2 {[%clk 0:00:09]}  Rc6 {[%clk 0:00:49]} 63. Kg1 {[%clk 0:00:09]}  Re6 {[%clk 0:00:50]} 64. Rd7 {[%clk 0:00:10]}  e4 {[%clk 0:00:50]} 65. fxe4+ {[%clk 0:00:10]}  Rxe4 {[%clk 0:00:51]} 66. Kh2 {[%clk 0:00:10]}  Re2 {[%clk 0:00:50]} 67. Rd5+ {[%clk 0:00:10]}  Kg6 {[%clk 0:00:50]} 68. Kg1 {[%clk 0:00:09]}  Ra2 {[%clk 0:00:50]} 69. Rc5 {[%clk 0:00:09]}  f5 {[%clk 0:00:50]} 70. Rc3 {[%clk 0:00:09]}  g4 {[%clk 0:00:50]} 71. hxg4 {[%clk 0:00:09]}  fxg4 {[%clk 0:00:50]} 72. Rc5 {[%clk 0:00:10]}  Kf6 {[%clk 0:00:48]} 73. Kf1 {[%clk 0:00:10]}  Rb2 {[%clk 0:00:48]} 74. Ra5 {[%clk 0:00:09]}  Rb1+ {[%clk 0:00:48]} 75. Ke2 {[%clk 0:00:09]}  Rb2+ {[%clk 0:00:49]} 76. Kf1 {[%clk 0:00:09]}  Ke6 {[%clk 0:00:45]} 77. Rg5 {[%clk 0:00:08]}  g3 {[%clk 0:00:45]} 78. Ra5 {[%clk 0:00:07]}  Rd2 {[%clk 0:00:46]} 79. Rb5 {[%clk 0:00:06]}  Rd5 {[%clk 0:00:45]} 80. Rb6+ {[%clk 0:00:04]}  Ke5 {[%clk 0:00:45]} 81. Rb4 {[%clk 0:00:04]}  Rd4 {[%clk 0:00:45]} 82. Rb7 {[%clk 0:00:04]}  Ke4 {[%clk 0:00:45]} 83. Re7+ {[%clk 0:00:03]}  Kd3 {[%clk 0:00:46]} 84. Re6 {[%clk 0:00:03]}  Re4 {[%clk 0:00:44]} 85. Rxe4 {[%clk 0:00:01]}  Kxe4 {[%clk 0:00:44]} 86. Ke2 {[%clk 0:00:02]}  Ke5 {[%clk 0:00:42]} 87. Kf3 {[%clk 0:00:02]}  Kf5 {[%clk 0:00:42]} 88. Ke2 {[%clk 0:00:02]}  Ke4 {[%clk 0:00:43]} 89. Kf1 {[%clk 0:00:02]}  Kd3 {[%clk 0:00:42]} 90. Ke1 {[%clk 0:00:02]}  Ke3 {[%clk 0:00:42]} 91. Kf1 {[%clk 0:00:02]}  Kd2 {[%clk 0:00:43]} 92. Kg1 {[%clk 0:00:02]}  Ke2 {[%clk 0:00:44]} 93. Kh1 {[%clk 0:00:03]}  f3 {[%clk 0:00:44]} 94. gxf3 {[%clk 0:00:03]}  Kf2 {[%clk 0:00:45]} 95. f4 {[%clk 0:00:02]}  g2+ {[%clk 0:00:45]} 96. Kh2 {[%clk 0:00:03]}  g1=Q+ {[%clk 0:00:37]} 97. Kh3 {[%clk 0:00:04]}  Qg3# {[%clk 0:00:38]} 0-1


[Site "https://www.chess.com"]

[Event "Titled Tuesday Blitz December 06 Early 2022"]
[White "Golubev, Mikhail"]
[Black "Molina, Roberto Junio Brito"]
[WhiteFideId "14100983"]
[BlackFideId "2109450"]
[WhiteElo "2374"]
[BlackElo "2376"]
[Result "0-1"]
[Round "08"]
[TimeControl "180+1"]
[Date "2022.12.07"]
[WhiteClock "0:00:07"]
[BlackClock "0:01:33"]

1. e4 {[%clk 0:03:00]}  c6 {[%clk 0:02:58]} 2. d4 {[%clk 0:02:59]}  d5 {[%clk 0:02:59]} 3. Nc3 {[%clk 0:03:00]}  dxe4 {[%clk 0:02:58]} 4. Nxe4 {[%clk 0:03:00]}  Nd7 {[%clk 0:02:58]} 5. Bd3 {[%clk 0:02:59]}  Ngf6 {[%clk 0:02:58]} 6. Ng5 {[%clk 0:02:58]}  e6 {[%clk 0:02:57]} 7. N1f3 {[%clk 0:02:58]}  Bd6 {[%clk 0:02:57]} 8. Qe2 {[%clk 0:02:59]}  h6 {[%clk 0:02:57]} 9. Ne4 {[%clk 0:02:59]}  Nxe4 {[%clk 0:02:58]} 10. Qxe4 {[%clk 0:02:58]}  Qc7 {[%clk 0:02:58]} 11. Qg4 {[%clk 0:02:49]}  g5 {[%clk 0:02:58]} 12. Nd2 {[%clk 0:02:42]}  b6 {[%clk 0:02:54]} 13. Ne4 {[%clk 0:02:34]}  Be7 {[%clk 0:02:54]} 14. Qh5 {[%clk 0:02:27]}  Nf6 {[%clk 0:02:49]} 15. Nxf6+ {[%clk 0:02:25]}  Bxf6 {[%clk 0:02:50]} 16. c3 {[%clk 0:02:21]}  Bb7 {[%clk 0:02:48]} 17. Be4 {[%clk 0:01:50]}  O-O-O {[%clk 0:02:43]} 18. Be3 {[%clk 0:01:45]}  Bg7 {[%clk 0:02:35]} 19. g4 {[%clk 0:01:27]}  c5 {[%clk 0:02:30]} 20. Bxb7+ {[%clk 0:01:20]}  Qxb7 {[%clk 0:02:30]} 21. O-O-O {[%clk 0:01:18]}  cxd4 {[%clk 0:02:30]} 22. cxd4 {[%clk 0:01:14]}  Bxd4 {[%clk 0:02:21]} 23. Bxd4 {[%clk 0:01:02]}  Rxd4 {[%clk 0:02:19]} 24. Rxd4 {[%clk 0:01:00]}  Qxh1+ {[%clk 0:02:19]} 25. Rd1 {[%clk 0:01:00]}  Qf3 {[%clk 0:02:16]} 26. Rd2 {[%clk 0:00:08]}  Kb8 {[%clk 0:02:10]} 27. Rc2 {[%clk 0:00:09]}  Rd8 {[%clk 0:02:03]} 28. b3 {[%clk 0:00:09]}  Rd1+ {[%clk 0:02:00]} 29. Kb2 {[%clk 0:00:09]}  Qf6+ {[%clk 0:02:00]} 30. Ka3 {[%clk 0:00:09]}  Rd5 {[%clk 0:01:48]} 31. Qh3 {[%clk 0:00:07]}  Ra5+ {[%clk 0:01:33]} 32. Kb4 {[%clk 0:00:07]}  Qd4+ {[%clk 0:01:33]} 33. Rc4 {[%clk 0:00:07]}  Qd2+ {[%clk 0:01:33]} 0-1


[Site "https://www.chess.com"]

[Event "Titled Tuesday Blitz December 06 Early 2022"]
[White "Holt, Conrad"]
[Black "Boyer, Mahel"]
[WhiteFideId "2034387"]
[BlackFideId "45102422"]
[WhiteElo "2592"]
[BlackElo "2455"]
[Result "0-1"]
[Round "08"]
[TimeControl "180+1"]
[Date "2022.12.06"]
[WhiteClock "0:00:01"]
[BlackClock "0:00:16"]

1. d4 {[%clk 0:03:00]}  e6 {[%clk 0:02:55]} 2. c4 {[%clk 0:03:00]}  f5 {[%clk 0:02:56]} 3. g3 {[%clk 0:02:58]}  Nf6 {[%clk 0:02:56]} 4. Bg2 {[%clk 0:02:59]}  d5 {[%clk 0:02:56]} 5. Nh3 {[%clk 0:02:58]}  Bd6 {[%clk 0:02:56]} 6. O-O {[%clk 0:02:57]}  O-O {[%clk 0:02:56]} 7. Bf4 {[%clk 0:02:57]}  Be7 {[%clk 0:02:57]} 8. Nd2 {[%clk 0:02:53]}  c6 {[%clk 0:02:55]} 9. Qb3 {[%clk 0:02:47]}  Nbd7 {[%clk 0:02:54]} 10. Ng5 {[%clk 0:02:47]}  Nb6 {[%clk 0:02:47]} 11. a4 {[%clk 0:02:38]}  h6 {[%clk 0:02:45]} 12. Ngf3 {[%clk 0:02:37]}  Ne4 {[%clk 0:02:44]} 13. a5 {[%clk 0:02:34]}  Nd7 {[%clk 0:02:34]} 14. a6 {[%clk 0:02:25]}  bxa6 {[%clk 0:02:32]} 15. cxd5 {[%clk 0:02:21]}  cxd5 {[%clk 0:02:33]} 16. Rfc1 {[%clk 0:02:19]}  Bd6 {[%clk 0:02:02]} 17. Bxd6 {[%clk 0:02:13]}  Nxd6 {[%clk 0:02:03]} 18. Rc6 {[%clk 0:02:07]}  Rb8 {[%clk 0:01:46]} 19. Qc2 {[%clk 0:02:00]}  Rb6 {[%clk 0:01:32]} 20. Rc1 {[%clk 0:01:23]}  Bb7 {[%clk 0:01:19]} 21. Rxb6 {[%clk 0:01:22]}  axb6 {[%clk 0:01:19]} 22. Ne5 {[%clk 0:01:06]}  Nxe5 {[%clk 0:01:06]} 23. dxe5 {[%clk 0:01:07]}  Nb5 {[%clk 0:01:07]} 24. e3 {[%clk 0:01:02]}  Rf7 {[%clk 0:01:07]} 25. Bf1 {[%clk 0:00:52]}  Rc7 {[%clk 0:01:06]} 26. Qd1 {[%clk 0:00:52]}  Rxc1 {[%clk 0:01:07]} 27. Qxc1 {[%clk 0:00:52]}  Qc7 {[%clk 0:01:08]} 28. Qxc7 {[%clk 0:00:41]}  Nxc7 {[%clk 0:01:08]} 29. Nb3 {[%clk 0:00:40]}  Kf7 {[%clk 0:00:58]} 30. f3 {[%clk 0:00:40]}  a5 {[%clk 0:00:51]} 31. Nd4 {[%clk 0:00:28]}  Ba6 {[%clk 0:00:51]} 32. Kf2 {[%clk 0:00:18]}  Bxf1 {[%clk 0:00:48]} 33. Kxf1 {[%clk 0:00:18]}  Ke7 {[%clk 0:00:49]} 34. Ke2 {[%clk 0:00:17]}  Kd7 {[%clk 0:00:42]} 35. g4 {[%clk 0:00:17]}  fxg4 {[%clk 0:00:40]} 36. fxg4 {[%clk 0:00:18]}  Na6 {[%clk 0:00:40]} 37. h4 {[%clk 0:00:18]}  Nb4 {[%clk 0:00:38]} 38. g5 {[%clk 0:00:14]}  hxg5 {[%clk 0:00:39]} 39. hxg5 {[%clk 0:00:15]}  Nc6 {[%clk 0:00:39]} 40. Nf3 {[%clk 0:00:15]}  Ne7 {[%clk 0:00:39]} 41. Kd3 {[%clk 0:00:15]}  Nf5 {[%clk 0:00:34]} 42. Nd2 {[%clk 0:00:12]}  Kc6 {[%clk 0:00:28]} 43. e4 {[%clk 0:00:07]}  Ng3 {[%clk 0:00:28]} 44. Kd4 {[%clk 0:00:04]}  Nxe4 {[%clk 0:00:25]} 45. Nf3 {[%clk 0:00:04]}  g6 {[%clk 0:00:20]} 46. Nh4 {[%clk 0:00:04]}  Nxg5 {[%clk 0:00:21]} 47. Nxg6 {[%clk 0:00:04]}  Kb5 {[%clk 0:00:16]} 48. Nf8 {[%clk 0:00:02]}  Kb4 {[%clk 0:00:16]} 49. Ke3 {[%clk 0:00:03]}  Nf7 {[%clk 0:00:17]} 50. Kd4 {[%clk 0:00:02]}  Nd8 {[%clk 0:00:17]} 51. Nd7 {[%clk 0:00:03]}  b5 {[%clk 0:00:17]} 52. Kd3 {[%clk 0:00:03]}  Nc6 {[%clk 0:00:17]} 53. Kc2 {[%clk 0:00:02]}  Kc4 {[%clk 0:00:16]} 54. Kd2 {[%clk 0:00:01]}  Kd4 {[%clk 0:00:16]} 0-1


[Site "https://www.chess.com"]

[Event "Titled Tuesday Blitz December 06 Early 2022"]
[White "Iskusnyh, Sergei"]
[Black "Ozen, Bahadir"]
[WhiteFideId "4120027"]
[BlackFideId "6337058"]
[WhiteElo "2492"]
[BlackElo "2503"]
[Result "1/2-1/2"]
[Round "08"]
[TimeControl "180+1"]
[Date "2022.12.06"]
[WhiteClock "0:01:13"]
[BlackClock "0:01:03"]

1. d4 {[%clk 0:03:00]}  d6 {[%clk 0:02:59]} 2. Nf3 {[%clk 0:03:00]}  Nf6 {[%clk 0:02:59]} 3. c4 {[%clk 0:02:59]}  Nbd7 {[%clk 0:02:59]} 4. g3 {[%clk 0:02:58]}  e5 {[%clk 0:02:59]} 5. Nc3 {[%clk 0:02:58]}  c6 {[%clk 0:02:59]} 6. Bg2 {[%clk 0:02:58]}  Be7 {[%clk 0:02:59]} 7. O-O {[%clk 0:02:58]}  O-O {[%clk 0:03:00]} 8. Qc2 {[%clk 0:02:55]}  Re8 {[%clk 0:02:59]} 9. e4 {[%clk 0:02:52]}  a6 {[%clk 0:02:56]} 10. Be3 {[%clk 0:02:52]}  b5 {[%clk 0:02:55]} 11. Rfd1 {[%clk 0:02:45]}  Bf8 {[%clk 0:02:46]} 12. dxe5 {[%clk 0:02:31]}  dxe5 {[%clk 0:02:46]} 13. a3 {[%clk 0:02:26]}  Qc7 {[%clk 0:02:29]} 14. Rac1 {[%clk 0:02:20]}  b4 {[%clk 0:02:25]} 15. axb4 {[%clk 0:02:15]}  Bxb4 {[%clk 0:02:25]} 16. Na4 {[%clk 0:02:10]}  a5 {[%clk 0:02:02]} 17. h3 {[%clk 0:02:07]}  Ba6 {[%clk 0:02:02]} 18. Ne1 {[%clk 0:01:56]}  Bf8 {[%clk 0:01:44]} 19. Nd3 {[%clk 0:01:55]}  Rab8 {[%clk 0:01:42]} 20. Nac5 {[%clk 0:01:48]}  Nxc5 {[%clk 0:01:42]} 21. Nxc5 {[%clk 0:01:48]}  Bc8 {[%clk 0:01:43]} 22. Ra1 {[%clk 0:01:44]}  Nd7 {[%clk 0:01:36]} 23. Na4 {[%clk 0:01:42]}  Ba6 {[%clk 0:01:31]} 24. c5 {[%clk 0:01:35]}  Bb5 {[%clk 0:01:31]} 25. Nb6 {[%clk 0:01:34]}  Nxc5 {[%clk 0:01:21]} 26. Bxc5 {[%clk 0:01:28]}  Bxc5 {[%clk 0:01:22]} 27. Qxc5 {[%clk 0:01:28]}  Qxb6 {[%clk 0:01:20]} 28. Qxb6 {[%clk 0:01:27]}  Rxb6 {[%clk 0:01:21]} 29. Rxa5 {[%clk 0:01:27]}  Rb7 {[%clk 0:01:13]} 30. Rd2 {[%clk 0:01:26]}  Kf8 {[%clk 0:01:13]} 31. Bf1 {[%clk 0:01:25]}  Bxf1 {[%clk 0:01:12]} 32. Kxf1 {[%clk 0:01:25]}  f6 {[%clk 0:01:06]} 33. Rc2 {[%clk 0:01:21]}  Reb8 {[%clk 0:01:04]} 34. Rxc6 {[%clk 0:01:14]}  Rxb2 {[%clk 0:01:04]} 35. Ra7 {[%clk 0:01:13]}  R2b7 {[%clk 0:01:04]} 36. Rc7 {[%clk 0:01:13]}  Rxa7 {[%clk 0:01:03]} 37. Rxa7 {[%clk 0:01:13]}  Rb4 {[%clk 0:01:03]} 1/2-1/2


[Site "https://www.chess.com"]

[Event "Titled Tuesday Blitz December 06 Early 2022"]
[White "Jobava, Baadur"]
[Black "Martinez Alcantara, Jose Eduardo"]
[WhiteFideId "13601520"]
[BlackFideId "3805662"]
[WhiteElo "2582"]
[BlackElo "2707"]
[Result "1-0"]
[Round "08"]
[TimeControl "180+1"]
[Date "2022.12.06"]
[WhiteClock "0:00:07"]
[BlackClock "0:00:06"]

1. e4 {[%clk 0:03:00]}  e5 {[%clk 0:02:58]} 2. Nf3 {[%clk 0:03:00]}  Nf6 {[%clk 0:02:59]} 3. Nxe5 {[%clk 0:02:59]}  d6 {[%clk 0:03:00]} 4. Nf3 {[%clk 0:03:00]}  Nxe4 {[%clk 0:03:00]} 5. d3 {[%clk 0:03:01]}  Nf6 {[%clk 0:03:00]} 6. d4 {[%clk 0:03:02]}  Be7 {[%clk 0:02:59]} 7. Bd3 {[%clk 0:03:02]}  O-O {[%clk 0:02:59]} 8. O-O {[%clk 0:03:02]}  Nbd7 {[%clk 0:02:58]} 9. Re1 {[%clk 0:03:02]}  Re8 {[%clk 0:02:58]} 10. c4 {[%clk 0:03:02]}  d5 {[%clk 0:02:51]} 11. c5 {[%clk 0:02:47]}  Nf8 {[%clk 0:02:45]} 12. Nc3 {[%clk 0:02:39]}  Bg4 {[%clk 0:02:37]} 13. h3 {[%clk 0:02:39]}  Bxf3 {[%clk 0:02:34]} 14. Qxf3 {[%clk 0:02:40]}  c6 {[%clk 0:02:34]} 15. Be3 {[%clk 0:02:26]}  Ne6 {[%clk 0:02:34]} 16. Re2 {[%clk 0:02:17]}  b6 {[%clk 0:02:28]} 17. cxb6 {[%clk 0:02:17]}  axb6 {[%clk 0:02:28]} 18. Rae1 {[%clk 0:02:17]}  Bb4 {[%clk 0:02:24]} 19. Bf5 {[%clk 0:02:01]}  Qd6 {[%clk 0:02:04]} 20. a3 {[%clk 0:01:42]}  Bxc3 {[%clk 0:01:57]} 21. bxc3 {[%clk 0:01:43]}  Qxa3 {[%clk 0:01:53]} 22. Bc1 {[%clk 0:01:33]}  Qd6 {[%clk 0:01:47]} 23. Bxe6 {[%clk 0:01:23]}  Rxe6 {[%clk 0:01:45]} 24. Rxe6 {[%clk 0:01:23]}  fxe6 {[%clk 0:01:46]} 25. Bf4 {[%clk 0:01:23]}  Qd7 {[%clk 0:01:45]} 26. Be5 {[%clk 0:01:22]}  Ne4 {[%clk 0:01:44]} 27. Qe3 {[%clk 0:01:11]}  Ra3 {[%clk 0:01:27]} 28. Rc1 {[%clk 0:01:06]}  b5 {[%clk 0:01:14]} 29. f3 {[%clk 0:00:55]}  Nd6 {[%clk 0:01:13]} 30. Qg5 {[%clk 0:00:43]}  Nf5 {[%clk 0:01:00]} 31. Kh2 {[%clk 0:00:33]}  Ra2 {[%clk 0:00:57]} 32. Re1 {[%clk 0:00:31]}  h6 {[%clk 0:00:53]} 33. Qg4 {[%clk 0:00:22]}  Qf7 {[%clk 0:00:53]} 34. h4 {[%clk 0:00:20]}  h5 {[%clk 0:00:42]} 35. Qg5 {[%clk 0:00:20]}  Qe7 {[%clk 0:00:43]} 36. Qxe7 {[%clk 0:00:17]}  Nxe7 {[%clk 0:00:44]} 37. Kh3 {[%clk 0:00:11]}  Kf7 {[%clk 0:00:43]} 38. g4 {[%clk 0:00:11]}  g6 {[%clk 0:00:43]} 39. Kg3 {[%clk 0:00:08]}  Rc2 {[%clk 0:00:43]} 40. Ra1 {[%clk 0:00:05]}  hxg4 {[%clk 0:00:36]} 41. Ra7 {[%clk 0:00:05]}  Ke8 {[%clk 0:00:31]} 42. Ra8+ {[%clk 0:00:05]}  Kf7 {[%clk 0:00:29]} 43. Ra7 {[%clk 0:00:06]}  gxf3 {[%clk 0:00:04]} 44. Bd6 {[%clk 0:00:05]}  f2 {[%clk 0:00:04]} 45. Kg2 {[%clk 0:00:04]}  Kf6 {[%clk 0:00:05]} 46. Bxe7+ {[%clk 0:00:03]}  Kf5 {[%clk 0:00:05]} 47. Bc5 {[%clk 0:00:01]}  Ke4 {[%clk 0:00:06]} 48. Rf7 {[%clk 0:00:01]}  Rxc3 {[%clk 0:00:04]} 49. Rxf2 {[%clk 0:00:01]}  Kd3 {[%clk 0:00:02]} 50. Rf6 {[%clk 0:00:01]}  Kc4 {[%clk 0:00:03]} 51. Rxe6 {[%clk 0:00:02]}  b4 {[%clk 0:00:03]} 52. Bxb4 {[%clk 0:00:02]}  Kd3 {[%clk 0:00:03]} 53. Bxc3 {[%clk 0:00:02]}  Kxc3 {[%clk 0:00:03]} 54. Rxg6 {[%clk 0:00:02]}  Kxd4 {[%clk 0:00:04]} 55. Rxc6 {[%clk 0:00:03]}  Ke5 {[%clk 0:00:04]} 56. Rg6 {[%clk 0:00:03]}  Kf5 {[%clk 0:00:04]} 57. h5 {[%clk 0:00:04]}  d4 {[%clk 0:00:04]} 58. Kf3 {[%clk 0:00:05]}  d3 {[%clk 0:00:05]} 59. Ke3 {[%clk 0:00:06]}  d2 {[%clk 0:00:06]} 60. Kxd2 {[%clk 0:00:07]} 1-0


[Site "https://www.chess.com"]